bitfinex-derivatives/quotes_ETHF0:USTF0_20250416
["timestamp","ask_amount","ask_price","bid_price","bid_amount"]
[1744818571678,8.75577,1592.9,1592.8,6.92317537]
[1744818572381,7.5001,1592.9,1592.8,6.92317537]
[1744818572577,7.5001,1592.9,1592.8,11.14497537]
[1744818573171,8.75577,1592.9,1592.8,11.14497537]
[1744818573577,7.5001,1592.9,1592.8,11.14497537]
[1744818574277,4.46347,1592.9,1592.8,11.14497537]
[1744818574483,3.2078,1592.9,1592.8,11.14497537]
[1744818574681,4.46347,1592.9,1592.8,11.14497537]
[1744818575083,3.2078,1592.9,1592.8,16.14497537]
[1744818575684,4.46347,1592.9,1592.8,16.14497537]
[1744818575985,4.46347,1592.9,1592.8,11.14497537]
[1744818576195,4.46347,1592.9,1592.8,1.26517537]
[1744818577084,4.46347,1592.9,1592.8,5.41927537]
[1744818578090,10.39947,1592.9,1592.8,0.00942537]
[1744818578291,18.70567,1592.9,1592.8,0.00942537]
[1744818579188,3.13943,1592.8,1592.3,1.25605]
[1744818579384,3.2078,1592.4,1592.2,8.1057]
[1744818579585,4.1688,1592.3,1592.2,9.36192]
[1744818579982,5.42494,1592.3,1592.2,9.36192]
[1744818580280,4.1688,1592.3,1592.2,5.26662]
[1744818580891,3.21722537,1592.4,1592.3,1.25614]
[1744818581093,7.53202537,1592.4,1592.3,5.33644]
[1744818581888,8.78808537,1592.4,1592.3,5.33644]
[1744818582194,8.78808537,1592.4,1592.3,4.0803]
[1744818582387,7.53202537,1592.4,1592.3,1.25614]
[1744818582893,8.78808537,1592.4,1592.3,1.25614]
[1744818583094,3.21722537,1592.4,1592.3,5.33644]
[1744818583295,0.00942537,1592.4,1592.3,5.33644]
[1744818583700,1.25614,1592.3,1592.2,5.26656]
[1744818583891,4.46394,1592.3,1592.2,9.50286]
[1744818584291,3.2078,1592.3,1592.2,9.50286]
[1744818584794,4.46394,1592.3,1592.2,9.50286]
[1744818584993,1.25622,1592.2,1592.1,6.90465537]
[1744818585294,1.25622,1592.2,1592.1,6.90466537]
[1744818585496,4.1808,1592.2,1592.1,51.94096537]
[1744818585692,5.43702,1592.2,1592.1,11.14096537]
[1744818586093,4.1808,1592.2,1592.1,11.14096537]
[1744818586498,5.43702,1592.2,1592.1,5.64842537]
[1744818587188,4.46397,1592.3,1592.2,1.25622]
[1744818587388,4.46397,1592.3,1592.2,5.28772]
[1744818587997,1.25622,1592.2,1592.1,5.64842537]
[1744818588298,5.62552,1592.2,1592.1,6.90472537]
[1744818589901,5.62552,1592.2,1592.1,11.23142537]
[1744818590300,4.3693,1592.2,1592.1,11.23142537]
[1744818593405,5.62552,1592.2,1592.1,11.23142537]
[1744818593593,4.3693,1592.2,1592.1,11.23142537]
[1744818594699,5.62552,1592.2,1592.1,11.23142537]
[1744818595103,5.62552,1592.2,1592.1,6.90472537]
[1744818595296,5.62552,1592.2,1592.1,5.64842537]
[1744818595698,5.62552,1592.2,1592.1,0.00942537]
[1744818595890,11.56152,1592.2,1592.1,0.00942537]
[1744818596400,1.25646,1591.9,1591.8,47.69748]
[1744818596600,4.46426,1591.9,1591.8,47.69748]
[1744818596901,8.68096,1591.9,1591.8,47.69748]
[1744818597103,5.936,1592.0,1591.9,1.25646]
[1744818597298,5.936,1592.0,1591.9,5.40626]
[1744818598306,11.40908,1592.0,1591.9,5.40626]
[1744818599104,5.936,1592.0,1591.9,5.40626]
[1744818599804,10.0665,1592.0,1591.9,5.40626]
[1744818600004,5.936,1592.0,1591.9,5.40626]
[1744818600197,3.2078,1592.1,1592.0,1.25638]
[1744818600397,4.4641,1592.1,1592.0,5.71168]
[1744818600605,7.3383,1592.1,1592.0,5.71168]
[1744818600797,3.2078,1592.1,1592.0,5.71168]
[1744818601503,4.4641,1592.1,1592.0,1.25638]
[1744818601808,8.5946,1592.1,1592.0,1.25638]
[1744818603112,1.2566,1591.8,1591.7,1.25654]
[1744818603402,3.2078,1592.0,1591.9,1.25646]
[1744818603607,1.25634,1592.1,1592.0,1.25638]
[1744818603813,8.71398,1592.2,1592.1,1.2563]
[1744818604308,8.71392,1592.2,1592.1,1.2563]
[1744818604509,8.71392,1592.2,1592.1,5.5477]
[1744818604811,9.15322537,1592.4,1592.1,12.43214]
[1744818605005,9.15322537,1592.4,1592.0,3.2078]
[1744818605006,1.25614,1592.3,1592.2,9.8213]
[1744818605307,1.25614,1592.3,1592.2,11.07752]
[1744818605510,5.68754,1592.3,1592.2,11.07752]
[1744818605712,4.4314,1592.3,1592.2,11.07752]
[1744818606007,3.21722537,1592.4,1592.3,1.25614]
[1744818606307,1.25614,1592.3,1592.2,6.87616]
[1744818606513,1.25638,1592.0,1591.9,5.50213]
[1744818606811,4.46424,1592.0,1591.9,1.25646]
[1744818607012,1.25648,1591.9,1591.8,1.25647]
[1744818607203,5.68788,1591.9,1591.8,1.25647]
[1744818607403,4.4314,1591.9,1591.8,5.45777]
[1744818607614,5.68786,1591.9,1591.8,5.45777]
[1744818608499,4.4314,1591.9,1591.8,5.45777]
[1744818608809,5.68786,1591.9,1591.8,5.45777]
[1744818609007,4.46422,1592.0,1591.9,1.25646]
[1744818609216,1.25646,1591.9,1591.8,5.45778]
[1744818609510,4.46423,1592.0,1591.9,1.25646]
[1744818610212,8.85363,1592.0,1591.9,1.25646]
[1744818610810,7.5972,1592.0,1591.9,1.25646]
[1744818611113,5.936,1592.1,1592.0,1.25638]
[1744818611315,5.936,1592.1,1592.0,6.87738]
[1744818611709,5.936,1592.1,1592.0,11.12818]
[1744818611915,7.1923,1592.1,1592.0,6.87738]
[1744818612114,11.6278,1592.1,1592.0,6.87738]
[1744818612816,11.6278,1592.1,1592.0,5.621]
[1744818613917,11.6278,1592.1,1592.0,6.87738]
[1744818614811,5.936,1592.1,1592.0,6.87738]
[1744818615010,5.936,1592.1,1592.0,11.06548]
[1744818615617,10.3796,1592.1,1592.0,11.06548]
[1744818616316,4.4436,1592.1,1592.0,11.06548]
[1744818616912,5.6999,1592.1,1592.0,6.87738]
[1744818617316,7.36504284,1592.2,1592.1,1.2563]
[1744818617515,7.36504284,1592.2,1592.1,9.5297]
[1744818617817,8.62126284,1592.2,1592.1,9.5297]
[1744818618116,11.58474284,1592.2,1592.1,9.5297]
[1744818618709,7.36504284,1592.2,1592.1,9.5297]
[1744818619213,4.15724284,1592.2,1592.1,14.5297]
[1744818619418,4.06973072,1592.2,1592.1,14.5297]
[1744818619615,4.87081806,1592.2,1592.1,14.5297]
[1744818622920,1.71118806,1592.2,1592.1,14.5297]
[1744818623120,5.76862797,1592.3,1592.2,1.25622]
[1744818623320,1.91675797,1592.3,1592.2,13.36012]
[1744818623520,8.32290404,1592.4,1592.3,1.25614]
[1744818623717,5.57384404,1592.4,1592.3,10.97764]
[1744818623914,8.91539882,1592.5,1592.4,1.25606]
[1744818624113,16.58085203,1592.9,1592.8,1.25575]
[1744818624328,12.42112659,1593.0,1592.9,1.25567]
[1744818624623,12.42112659,1593.0,1592.9,42.05567]
[1744818624824,12.42112659,1593.0,1592.9,46.15717]
[1744818625426,12.42112659,1593.0,1592.9,49.36497]
[1744818625922,12.42112659,1593.0,1592.9,54.36497]
[1744818626231,11.08094659,1593.0,1592.9,54.36497]
[1744818626422,7.23581659,1593.0,1592.9,54.36497]
[1744818626627,7.23581659,1593.0,1592.9,58.69867]
[1744818627128,5.48697659,1593.0,1592.9,58.69867]
[1744818627331,3.14233659,1593.0,1592.9,62.92267]
[1744818627631,6.59e-06,1593.0,1592.9,62.92267]
[1744818627822,13.03980749,1593.1,1593.0,1.25559]
[1744818628027,11.69334749,1593.1,1593.0,5.43829]
[1744818628227,8.80084749,1593.1,1593.0,10.43829]
[1744818628425,8.80084749,1593.1,1593.0,5.43829]
[1744818628625,5.65607537,1593.1,1593.0,42.05559]
[1744818628932,8.67142537,1593.1,1593.0,42.05559]
[1744818630923,9.92693537,1593.1,1593.0,40.8]
[1744818631131,14.92693537,1593.1,1593.0,40.8]
[1744818631428,19.60742537,1593.1,1592.8,0.00942537]
[1744818631623,1.25593,1592.6,1592.4,6.87402]
[1744818631819,5.936,1592.8,1592.5,3.13996]
[1744818632023,5.936,1592.8,1592.7,1.25582]
[1744818632227,5.936,1592.8,1592.7,6.87382]
[1744818632929,7.19175,1592.8,1592.7,5.618]
[1744818633319,11.34845,1592.8,1592.7,5.618]
[1744818633930,16.34845,1592.8,1592.7,5.618]
[1744818634421,1.25598,1592.5,1592.4,1.25599]
[1744818634625,1.25598,1592.5,1592.4,5.597]
[1744818635027,4.46374,1592.6,1592.5,1.25598]
[1744818635226,3.2078,1592.6,1592.5,1.25598]
[1744818635433,5.44998,1592.7,1592.6,1.2559]
[1744818636244,1.25593,1592.6,1592.5,1.25593]
[1744818636734,4.46373,1592.6,1592.5,1.25593]
[1744818637036,4.46376,1592.6,1592.5,1.25598]
[1744818637631,3.2078,1592.6,1592.5,1.25598]
[1744818637935,4.1941,1592.7,1592.6,1.2559]
[1744818640136,4.4634,1593.0,1592.7,1.25582]
[1744818640337,7.6363,1593.0,1592.8,5.597]
[1744818640532,1.25567,1592.9,1592.8,5.597]
[1744818641035,6.25567,1592.9,1592.8,5.597]
[1744818642438,1.25567,1592.9,1592.8,5.597]
[1744818642736,8.89195,1593.0,1592.8,5.597]
[1744818642938,1.25567,1592.9,1592.8,5.597]
[1744818643437,1.25567,1592.9,1592.8,6.85269]
[1744818643837,8.89196,1593.0,1592.9,1.25567]
[1744818644038,7.6363,1593.0,1592.8,5.597]
[1744818644237,8.89189,1593.0,1592.9,1.25567]
[1744818644537,7.6363,1593.0,1592.9,1.25567]
[1744818644738,8.89189,1593.0,1592.9,1.25567]
[1744818646142,1.25567,1592.9,1592.8,6.85268]
[1744818646339,8.89195,1593.0,1592.9,1.25567]
[1744818647539,1.25582,1592.7,1592.6,1.25584]
[1744818647842,3.2078,1592.8,1592.7,1.25582]
[1744818648037,3.2078,1592.8,1592.7,6.85282]
[1744818648343,8.8919,1593.0,1592.9,1.25567]
[1744818649733,13.0337,1593.0,1592.9,1.25567]
[1744818650835,1.25567,1592.9,1592.8,1.25569]
[1744818651035,5.65007,1592.9,1592.8,1.25569]
[1744818651446,4.3944,1592.9,1592.8,1.25569]
[1744818652943,1.25575,1592.8,1592.7,6.85275]
[1744818653144,8.90525,1592.8,1592.7,5.597]
[1744818653839,11.7684,1592.8,1592.7,5.597]
[1744818654143,11.7684,1592.8,1592.7,6.85282]
[1744818654643,13.02415,1592.8,1592.7,6.85282]
[1744818655344,11.7684,1592.8,1592.7,6.85282]
[1744818655842,8.5606,1592.8,1592.7,6.85282]
[1744818656038,8.5606,1592.8,1592.7,11.13412]
[1744818656242,8.5606,1592.8,1592.7,6.85282]
[1744818657541,9.81635,1592.8,1592.7,5.597]
[1744818657748,13.02415,1592.8,1592.7,5.597]
[1744818657944,13.02415,1592.8,1592.7,6.85282]
[1744818658942,13.5723,1593.0,1592.9,1.25567]
[1744818659143,0.00942537,1593.1,1593.0,1.25559]
[1744818659337,0.00942537,1593.1,1593.0,11.15949]
[1744818662151,0.00942537,1593.1,1593.0,16.15949]
[1744818663148,0.00942537,1593.1,1593.0,19.36729]
[1744818663650,0.00942537,1593.1,1593.0,11.15949]
[1744818664047,0.00942537,1593.1,1593.0,1.25559]
[1744818664349,0.00942537,1593.1,1593.0,6.83159]
[1744818664746,4.16942537,1593.1,1593.0,6.83159]
[1744818665248,8.63273537,1593.1,1593.0,5.576]
[1744818666044,7.37722537,1593.1,1593.0,6.83159]
[1744818666349,8.63273537,1593.1,1593.0,6.83159]
[1744818666546,7.37722537,1593.1,1593.0,6.83159]
[1744818666749,8.63273537,1593.1,1593.0,6.83159]
[1744818667150,7.37722537,1593.1,1593.0,6.83159]
[1744818667653,8.63273537,1593.1,1593.0,6.83159]
[1744818668045,7.37722537,1593.1,1593.0,6.83159]
[1744818668347,0.00942537,1593.1,1593.0,6.83159]
[1744818669352,4.47273537,1593.1,1593.0,1.25559]
[1744818669755,13.14703537,1593.1,1593.0,1.25559]
[1744818670154,13.14703537,1593.1,1592.9,1.2556]
[1744818670355,4.4746,1593.0,1592.9,1.2556]
[1744818671259,7.41692537,1593.1,1593.0,1.25559]
[1744818671554,11.89152537,1593.1,1593.0,1.25559]
[1744818672151,13.14703537,1593.1,1593.0,1.25559]
[1744818672356,11.89152537,1593.1,1593.0,1.25559]
[1744818672654,16.11182537,1593.1,1593.0,1.25559]
[1744818673151,17.36733537,1593.1,1593.0,1.25559]
[1744818673357,16.11182537,1593.1,1593.0,1.25559]
[1744818675652,16.11182537,1593.1,1593.0,5.56769]
[1744818679159,17.36733537,1593.1,1593.0,5.56769]
[1744818679355,17.36733537,1593.1,1593.0,1.25559]
[1744818679663,16.11182537,1593.1,1593.0,1.25559]
[1744818679859,17.36733537,1593.1,1593.0,1.25559]
[1744818680059,16.11182537,1593.1,1593.0,1.25559]
[1744818682063,16.11182537,1593.1,1593.0,5.43059]
[1744818683664,17.36733537,1593.1,1593.0,4.175]
[1744818683864,16.11182537,1593.1,1593.0,1.25559]
[1744818684052,17.36733537,1593.1,1593.0,1.25559]
[1744818684256,16.11182537,1593.1,1593.0,1.25559]
[1744818686067,16.11182537,1593.1,1593.0,5.36839]
[1744818686665,11.89152537,1593.1,1593.0,5.36839]
[1744818687364,0.00942537,1593.1,1593.0,13.57619]
[1744818687564,5.37e-06,1593.1,1593.0,17.82059]
[1744818688170,5.37e-06,1593.1,1593.0,55.41279]
[1744818690660,5.37e-06,1593.1,1593.0,50.41279]
[1744818690862,5.37e-06,1593.1,1593.0,46.16839]
[1744818691066,8.48720537,1593.1,1593.0,47.63059]
[1744818691760,8.48720537,1593.1,1593.0,52.06729]
[1744818693070,8.48720537,1593.1,1593.0,47.63059]
[1744818694671,8.48720537,1593.1,1593.0,6.83059]
[1744818694969,12.66920537,1593.1,1593.0,6.83059]
[1744818695167,12.66920537,1593.1,1593.0,47.63059]
[1744818695671,12.66920537,1593.1,1593.0,6.83059]
[1744818696170,12.66920537,1593.1,1593.0,47.63059]
[1744818696373,12.66920537,1593.1,1593.0,6.83059]
[1744818696765,12.66920537,1593.1,1593.0,47.63059]
[1744818696961,12.66920537,1593.1,1593.0,6.83059]
[1744818698174,13.92471537,1593.1,1593.0,6.83059]
[1744818698375,12.66920537,1593.1,1593.0,6.83059]
[1744818698575,13.92471537,1593.1,1593.0,6.83059]
[1744818698877,12.66920537,1593.1,1593.0,6.83059]
[1744818699772,13.92471537,1593.1,1593.0,6.83059]
[1744818699974,12.66920537,1593.1,1593.0,6.83059]
[1744818701769,18.95401431,1593.1,1593.0,6.83059]
[1744818702478,14.77201431,1593.1,1593.0,6.83059]
[1744818702775,14.77201431,1593.1,1593.0,11.20659]
[1744818702971,6.28481431,1593.1,1593.0,16.20659]
[1744818703277,8.33791707,1593.2,1593.1,1.25551]
[1744818703468,8.33791707,1593.2,1593.1,8.83931]
[1744818703668,8.33791707,1593.2,1593.1,13.83931]
[1744818703975,4.12225707,1593.2,1593.1,13.83931]
[1744818704278,8.3738,1593.8,1593.7,1.25504]
[1744818704468,16.55996394,1593.9,1593.8,1.25496]
[1744818704668,16.55996394,1593.9,1593.8,5.63096]
[1744818705369,12.49566394,1593.9,1593.8,5.63096]
[1744818705979,12.50508931,1594.0,1593.9,1.25488]
[1744818706175,12.50508931,1594.0,1593.9,5.57788]
[1744818706573,12.50508931,1594.0,1593.9,42.05488]
[1744818706774,17.96588931,1594.0,1593.9,40.8]
[1744818707076,1.25488,1593.9,1593.8,0.00942537]
[1744818707272,3.2078,1593.9,1593.8,0.0002085]
[1744818707472,8.2078,1593.9,1593.8,40.8002085]
[1744818707673,13.62538,1593.9,1593.8,40.8002085]
[1744818707878,13.62538,1593.9,1593.8,0.0002085]
[1744818708374,19.56138,1593.9,1593.8,0.0002085]
[1744818708574,18.3065,1593.9,1593.4,5.553]
[1744818708774,4.46287,1593.7,1593.5,1.25516]
[1744818708974,4.427,1593.6,1593.5,1.25516]
[1744818709175,8.8799,1593.6,1593.5,1.25516]
[1744818709379,10.13502,1593.6,1593.4,47.60821]
[1744818709676,4.427,1593.5,1593.4,6.80821]
[1744818710177,7.6348,1593.5,1593.4,6.80821]
[1744818711182,7.6348,1593.5,1593.4,10.94371]
[1744818711385,7.6348,1593.5,1593.4,6.80821]
[1744818711781,11.8847,1593.5,1593.4,6.80821]
[1744818712485,11.8847,1593.5,1593.4,10.98161]
[1744818712685,11.8847,1593.5,1593.4,6.80821]
[1744818714178,13.13989,1593.5,1593.4,6.80821]
[1744818714381,1.25527,1593.4,1593.3,0.00942537]
[1744818714584,1.25553,1593.1,1592.9,6.8086]
[1744818714784,8.5575,1593.0,1592.9,6.80867]
[1744818714986,12.923,1593.0,1592.9,47.60867]
[1744818718795,12.923,1593.0,1592.9,51.73837]
[1744818719996,8.5575,1593.0,1592.9,51.73837]
[1744818720297,0.00942537,1593.1,1593.0,1.25559]
[1744818720596,0.00942537,1593.1,1593.0,5.38529]
[1744818721093,4.46772537,1593.1,1593.0,5.38529]
[1744818722098,4.46772537,1593.1,1593.0,1.25559]
[1744818722289,8.82092537,1593.1,1593.0,1.25559]
[1744818722489,12.02872537,1593.1,1593.0,1.25559]
[1744818724303,12.02872537,1593.1,1592.9,5.553]
[1744818724597,5.35959,1593.0,1592.9,5.553]
[1744818725495,1.25575,1592.8,1592.7,42.05576]
[1744818725797,4.46355,1592.8,1592.7,40.8]
[1744818725989,1.25582,1592.7,1592.6,5.533]
[1744818726189,12.612,1592.7,1592.6,6.7889]
[1744818726398,13.86782,1592.7,1592.6,6.7889]
[1744818727200,12.612,1592.7,1592.6,6.7889]
[1744818728199,13.86782,1592.7,1592.6,6.7889]
[1744818729094,12.612,1592.7,1592.6,6.7889]
[1744818729904,13.86782,1592.7,1592.6,6.7889]
[1744818730099,12.612,1592.7,1592.6,6.7889]
[1744818730796,13.86782,1592.7,1592.6,6.7889]
[1744818731004,12.612,1592.7,1592.6,6.7889]
[1744818731201,13.86782,1592.7,1592.6,5.533]
[1744818731502,13.86782,1592.7,1592.6,6.7889]
[1744818731702,13.86782,1592.7,1592.6,5.533]
[1744818732104,1.2559,1592.6,1592.5,1.25592]
[1744818732303,5.7087,1592.6,1592.5,1.25592]
[1744818733304,1.25598,1592.5,1592.4,133.3524]
[1744818733493,1.25619,1592.3,1592.0,17.08084]
[1744818733698,4.0786,1592.2,1592.1,1.2563]
[1744818733997,4.0786,1592.2,1592.1,46.1493]
[1744818734698,4.0786,1592.2,1591.9,1.25639]
[1744818734699,7.2864,1592.2,1591.9,1.25639]
[1744818734998,5.33276,1592.1,1592.0,1.25638]
[1744818735200,9.41136,1592.1,1592.0,40.8]
[1744818735397,9.41136,1592.1,1591.8,1.25647]
[1744818735601,1.25646,1591.9,1591.8,1.25647]
[1744818735802,5.33504,1592.0,1591.9,1.25646]
[1744818736197,4.0786,1592.0,1591.9,1.25646]
[1744818736602,4.0786,1592.0,1591.8,1.25649]
[1744818736907,4.1115,1591.9,1591.8,1.25649]
[1744818737207,7.2864,1592.0,1591.9,1.25646]
[1744818737608,8.54278,1592.0,1591.8,5.536]
[1744818737907,5.46766,1591.9,1591.8,6.79248]
[1744818738107,4.2112,1591.9,1591.8,6.79248]
[1744818738309,4.2112,1591.9,1591.8,47.59248]
[1744818739301,3.2078,1592.0,1591.9,1.25646]
[1744818739507,9.44423,1592.1,1592.0,1.25638]
[1744818739801,8.1879,1592.1,1591.8,47.59251]
[1744818740006,1.25643,1592.0,1591.8,47.59251]
[1744818740206,1.25643,1592.0,1591.9,1.25646]
[1744818740505,4.46423,1592.0,1591.9,1.25646]
[1744818740706,8.50593,1592.0,1591.9,1.25646]
[1744818741109,7.2495,1592.0,1591.9,1.25646]
[1744818741309,8.50588,1592.0,1591.9,1.25646]
[1744818742411,7.2495,1592.0,1591.9,1.25646]
[1744818742714,4.1115,1592.1,1592.0,1.25638]
[1744818743017,5.3678,1592.1,1592.0,1.25638]
[1744818743313,9.5766,1592.1,1592.0,1.25638]
[1744818743514,9.5766,1592.1,1591.9,5.4645]
[1744818743515,1.25638,1592.0,1591.9,5.4645]
[1744818743813,1.25646,1591.9,1591.8,1.25648]
[1744818744004,5.35796,1591.9,1591.8,1.25648]
[1744818744204,8.3103,1591.9,1591.8,1.25648]
[1744818745107,8.3103,1591.9,1591.7,45.1888]
[1744818745319,8.3103,1591.9,1591.7,46.44539]
[1744818745320,4.146,1591.8,1591.7,46.44539]
[1744818747420,3.2078,1592.0,1591.9,1.25646]
[1744818747715,4.146,1592.0,1591.9,1.25646]
[1744818748114,13.50902537,1592.2,1591.9,4.3597]
[1744818748319,13.50902537,1592.2,1592.1,1.2563]
[1744818748320,3.21722537,1592.2,1592.1,1.2563]
[1744818748622,3.21722537,1592.2,1592.1,6.7933]
[1744818748920,0.00942537,1592.2,1592.1,10.8163]
[1744818750220,4.47052537,1592.2,1592.1,6.7933]
[1744818751424,7.67832537,1592.2,1592.0,1.25635]
[1744818751619,7.67832537,1592.2,1592.0,4.1559]
[1744818751826,7.67832537,1592.2,1592.1,1.2563]
[1744818752228,0.00942537,1592.2,1592.1,6.7933]
[1744818752419,8.3803,1592.5,1592.4,1.25606]
[1744818753426,3.2078,1592.6,1592.5,1.25598]
[1744818753627,3.21722537,1592.6,1592.5,1.25598]
[1744818754127,7.47632537,1592.6,1592.5,5.41188]
[1744818755829,8.73222537,1592.6,1592.5,5.41188]
[1744818756125,1.25598,1592.5,1592.4,10.8399]
[1744818756320,4.3706,1592.5,1592.4,10.8399]
[1744818756523,7.68182537,1592.6,1592.5,1.25598]
[1744818756830,7.68182537,1592.6,1592.5,5.37808]
[1744818757019,13.30832537,1592.6,1592.5,5.37808]
[1744818757219,12.05242537,1592.6,1592.5,5.37808]
[1744818757426,7.58782537,1592.6,1592.5,5.37808]
[1744818757624,3.21722537,1592.6,1592.5,5.37808]
[1744818757827,4.47312537,1592.6,1592.5,5.37808]
[1744818758025,8.73692537,1592.6,1592.5,5.37808]
[1744818758228,7.48102537,1592.6,1592.5,5.37808]
[1744818760333,3.21722537,1592.6,1592.5,5.37808]
[1744818761324,0.00942537,1592.6,1592.5,5.37808]
[1744818761920,0.00942537,1592.6,1592.5,13.58588]
[1744818762826,0.00942537,1592.6,1592.5,54.38588]
[1744818763026,5.37e-06,1592.6,1592.5,54.38588]
[1744818765024,5.37e-06,1592.6,1592.5,49.38588]
[1744818766337,5.37e-06,1592.6,1592.5,54.38588]
[1744818767841,5.37e-06,1592.6,1592.5,49.38588]
[1744818768137,5.37e-06,1592.6,1592.5,46.17808]
[1744818769639,5.37e-06,1592.6,1592.5,49.38588]
[1744818772843,4.0644,1593.1,1593.0,1.25559]
[1744818773045,8.4482,1593.1,1593.0,6.76959]
[1744818773543,10.7200062,1593.4,1593.2,1.25543]
[1744818773742,13.1927,1593.3,1593.2,1.25543]
[1744818775049,13.1927,1593.3,1593.1,0.00942537]
[1744818775050,14.44808,1593.3,1593.1,0.00942537]
[1744818775246,4.3838,1593.2,1593.1,1.26493537]
[1744818775741,4.3838,1593.2,1593.1,5.68703537]
[1744818776141,4.3838,1593.2,1593.1,1.26493537]
[1744818777544,13.84703,1593.2,1593.1,0.00942537]
[1744818778041,12.5916,1593.2,1593.1,0.00942537]
[1744818778243,13.84703,1593.2,1593.1,0.00942537]
[1744818778848,13.84703,1593.2,1593.1,1.26493537]
[1744818779146,19.78303,1593.2,1593.1,0.00942537]
[1744818780647,19.78303,1593.2,1593.1,1.26493537]
[1744818781044,19.78303,1593.2,1593.1,0.00942537]
[1744818781244,13.5276,1593.2,1593.1,1.26493537]
[1744818781449,14.78303,1593.2,1593.1,1.26493537]
[1744818781648,13.5276,1593.2,1593.1,1.26493537]
[1744818781848,10.3198,1593.2,1593.1,1.26493537]
[1744818782051,4.3838,1593.2,1593.1,1.26493537]
[1744818782559,8.8089,1593.3,1593.2,1.25543]
[1744818782852,10.06425,1593.3,1593.2,1.25543]
[1744818783048,8.8089,1593.3,1593.2,1.25543]
[1744818783247,13.1134,1593.3,1593.2,1.25543]
[1744818783954,13.1134,1593.3,1593.1,1.26487537]
[1744818784252,4.3045,1593.2,1593.1,1.26487537]
[1744818785848,4.3045,1593.2,1593.1,0.00942537]
[1744818785849,8.76773,1593.2,1593.1,0.00942537]
[1744818786249,8.76773,1593.2,1593.1,1.26493537]
[1744818786754,8.76773,1593.2,1593.1,0.00942537]
[1744818787148,7.5123,1593.2,1593.1,1.26493537]
[1744818787343,4.3045,1593.2,1593.1,1.26493537]
[1744818787754,5.55993,1593.2,1593.1,0.00942537]
[1744818788150,4.3045,1593.2,1593.1,1.26493537]
[1744818791955,4.3045,1593.2,1593.1,5.45803537]
[1744818792858,4.3045,1593.2,1593.1,1.26493537]
[1744818800667,4.3045,1593.2,1593.1,5.41833537]
[1744818800965,4.3045,1593.2,1593.1,9.92823537]
[1744818803772,4.3045,1593.2,1593.1,5.41833537]
[1744818805171,4.3045,1593.2,1593.1,1.26493537]
[1744818805369,7.5123,1593.2,1593.1,1.26493537]
[1744818806371,4.3045,1593.2,1593.1,1.26493537]
[1744818806768,5.55993,1593.2,1593.1,0.00942537]
[1744818806974,8.76773,1593.2,1593.1,0.00942537]
[1744818807166,8.76773,1593.2,1593.1,1.26493537]
[1744818807573,7.5123,1593.2,1593.1,1.26493537]
[1744818807873,7.5123,1593.2,1593.1,5.52833537]
[1744818808573,4.3045,1593.2,1593.1,5.52833537]
[1744818809867,7.5123,1593.2,1593.1,5.52833537]
[1744818810170,1.25559,1593.0,1592.6,3.13961]
[1744818810374,1.25559,1593.0,1592.8,1.25569]
[1744818810375,3.2078,1593.0,1592.8,1.25569]
[1744818810576,5.64018,1592.9,1592.7,5.84696]
[1744818810777,4.3845,1592.8,1592.7,5.84696]
[1744818811374,4.3845,1592.8,1592.7,1.25576]
[1744818811776,4.3845,1592.8,1592.7,5.84696]
[1744818815175,9.46282882,1593.0,1592.9,1.25567]
[1744818815678,10.67372882,1593.0,1592.9,5.83567]
[1744818816482,10.67372882,1593.0,1592.9,1.25567]
[1744818817775,11.92934882,1593.0,1592.8,11.32868]
[1744818817981,5.67437,1592.9,1592.8,5.493]
[1744818818283,4.4187,1592.9,1592.8,6.74875]
[1744818818580,5.67437,1592.9,1592.8,5.493]
[1744818818781,5.67437,1592.9,1592.8,6.74875]
[1744818818970,4.4187,1592.9,1592.8,6.74875]
[1744818819174,5.67437,1592.9,1592.8,6.74875]
[1744818819582,4.4187,1592.9,1592.8,6.74875]
[1744818820982,7.6265,1592.9,1592.8,6.74875]
[1744818821282,8.88217,1592.9,1592.8,5.493]
[1744818821782,13.88217,1592.9,1592.8,5.493]
[1744818821982,1.25582,1592.7,1592.6,1.26530537]
[1744818822181,4.46362,1592.7,1592.6,0.00942537]
[1744818822580,8.65942,1592.7,1592.6,0.00942537]
[1744818822885,19.59542,1592.7,1592.6,0.00942537]
[1744818823680,19.59542,1592.7,1592.3,8.29004593]
[1744818823681,1.25606,1592.4,1592.3,8.29004593]
[1744818823887,1.25614,1592.3,1592.2,12.4350689]
[1744818824187,9.93074,1592.3,1592.2,12.4350689]
[1744818824384,14.93074,1592.3,1592.2,5.4970689]
[1744818824579,20.86674,1592.3,1592.2,5.4970689]
[1744818827181,1.25641,1592.0,1591.8,1.25653]
[1744818827382,1.25646,1591.9,1591.8,1.25653]
[1744818827595,1.25632,1592.1,1591.7,13.04829]
[1744818827781,1.2564,1592.0,1591.9,1.25641]
[1744818828182,5.52746,1592.1,1592.0,1.25638]
[1744818829183,1.25638,1592.0,1591.9,9.88489]
[1744818829477,1.25636,1592.1,1592.0,1.25638]
[1744818830187,7.4468,1592.2,1591.9,8.6285]
[1744818830390,1.25638,1592.0,1591.9,5.73441]
[1744818830585,8.70307,1592.2,1592.1,1.2563]
[1744818830793,1.25635,1592.1,1592.0,1.25632]
[1744818831182,1.25638,1592.0,1591.9,10.03849]
[1744818831380,3.2078,1592.2,1592.1,1.2563]
[1744818831580,7.392247,1592.4,1592.1,5.476]
[1744818831792,8.648337,1592.4,1592.3,1.25614]
[1744818832086,7.392247,1592.4,1592.3,1.25614]
[1744818832793,8.648307,1592.4,1592.3,5.56024]
[1744818833493,1.25614,1592.3,1592.2,8.8381]
[1744818833694,1.25614,1592.3,1592.2,10.09432]